fUST/lending_fUST_20251210
["ID","MTS","AMOUNT","RATE_DAILY","PERIOD"]
[398112429,1765379451674,-500.0,0.00014984,2]
[398112430,1765379451683,-500.0,0.00014984,2]
[398112431,1765379451692,-500.0,0.00014984,2]
[398112432,1765379451701,-1358.32,0.00014984,2]
[398112433,1765379451710,-500.0,0.00014984,2]
[398112434,1765379451720,-500.0,0.00014984,2]
[398112435,1765379451729,-500.0,0.00014984,2]
[398112436,1765379451738,-500.0,0.00014984,2]
[398112437,1765379451747,-500.0,0.00014984,2]
[398112438,1765379451756,-500.0,0.00014984,2]
[398112439,1765379451765,-501.22032012,0.00014984,2]
[398112440,1765379451774,-500.0,0.00014984,2]
[398112441,1765379451783,-500.0,0.00014984,2]
[398112442,1765379451793,-500.0,0.00014984,2]
[398112443,1765379451803,-500.0,0.00014984,2]
[398112444,1765379451815,-500.0,0.00014984,2]
[398112445,1765379451825,-500.0,0.00014984,2]
[398112446,1765379451834,-500.0,0.00014984,2]
[398112447,1765379451844,-500.0,0.00014984,2]
[398112448,1765379451853,-500.0,0.00014984,2]
[398112449,1765379451862,-500.17662948,0.00014984,2]
[398112450,1765379451871,-938.24,0.00014984,2]
[398112451,1765379451880,-500.0,0.00014984,2]
[398112452,1765379451889,-500.0,0.00014984,2]
[398112453,1765379451899,-500.0,0.00014984,2]
[398112454,1765379451908,-500.0,0.00014984,2]
[398112455,1765379451917,-1248.9,0.00014984,2]
[398112456,1765379451927,-671.81,0.00014984,2]
[398112457,1765379451937,-500.0,0.00014984,2]
[398112458,1765379451947,-500.0,0.00014984,2]
[398112459,1765379451956,-500.0,0.00014984,2]
[398112460,1765379451965,-500.0,0.00014984,2]
[398112461,1765379451974,-500.0,0.00014984,2]
[398112462,1765379451983,-500.38592656,0.00014984,2]
[398112463,1765379451992,-500.89825804,0.00014984,2]
[398112464,1765379452000,-1996.9,0.00014984,2]
[398112465,1765379452009,-500.0,0.00014984,2]
[398112466,1765379452018,-641.17,0.00014984,2]
[398112467,1765379452027,-500.9965443,0.00014984,2]
[398112468,1765379452037,-500.0,0.00014984,2]
[398112469,1765379452046,-500.0,0.00014984,2]
[398112470,1765379452055,-500.0,0.00014984,2]
[398112471,1765379452064,-500.0,0.00014984,2]
[398112472,1765379452073,-500.0,0.00014984,2]
[398112473,1765379452082,-697.65,0.00014984,2]
[398112474,1765379452092,-500.0,0.00014984,2]
[398112475,1765379452101,-500.0,0.00014984,2]
[398112476,1765379452110,-460.4,0.00014984,2]
[398112477,1765379452119,-500.0,0.00014984,2]
[398112478,1765379452128,-504.10262614,0.00014984,2]
[398112479,1765379452137,-500.6352544,0.00014984,2]
[398112480,1765379452146,-500.0,0.00014984,2]
[398112481,1765379452156,-500.0,0.00014984,2]
[398112482,1765379452166,-695.55,0.00014984,2]
[398112483,1765379452175,-500.0,0.00014984,2]
[398112484,1765379452184,-500.0,0.00014984,2]
[398112485,1765379452193,-500.0,0.00014984,2]
[398112486,1765379452201,-500.0,0.00014984,2]
[398112487,1765379452211,-501.23080546,0.00014984,2]
[398112488,1765379452220,-604.33,0.00014984,2]
[398112489,1765379452229,-636.84,0.00014984,2]
[398112490,1765379452238,-500.0,0.00014984,2]
[398112491,1765379452247,-500.0,0.00014984,2]
[398112492,1765379452256,-321.31605998,0.00014984,2]
[398112493,1765379452264,-204.59942742,0.00014984,2]
[398112494,1765379452274,-500.0,0.00014984,2]
[398112495,1765379452283,-1000.0,0.00014984,2]
[398112496,1765379452292,-500.0,0.00014984,2]
[398112497,1765379452301,-538.66668925,0.00014984,2]
[398112498,1765379452310,-500.0,0.00014984,2]
[398112499,1765379452319,-500.0,0.00014984,2]
[398112500,1765379452328,-500.0,0.00014984,2]
[398112501,1765379452337,-500.0,0.00014984,2]
[398112502,1765379452345,-500.0,0.00014984,2]
[398112503,1765379452355,-500.0,0.00014984,2]
[398112504,1765379452369,-500.0,0.00014984,2]
[398112505,1765379452378,-502.46237414,0.00014984,2]
[398112506,1765379452387,-500.0,0.00014984,2]
[398112507,1765379452396,-1404.33,0.00014984,2]
[398112508,1765379452407,-500.0,0.00014984,2]
[398112509,1765379452416,-500.0,0.00014984,2]
[398112510,1765379452425,-1279.94,0.00014984,2]
[398112511,1765379452434,-500.0,0.00014984,2]
[398112512,1765379452445,-236.23267808,0.00014984,2]
[398112513,1765379452454,-500.0,0.00014984,2]
[398112514,1765379452464,-500.0,0.00014984,2]
[398112515,1765379452473,-500.0,0.00014984,2]
[398112516,1765379452482,-500.0,0.00014984,2]
[398112517,1765379452491,-500.0,0.00014984,2]
[398112518,1765379452500,-500.0,0.00014984,2]
[398112519,1765379452509,-500.0,0.00014984,2]
[398112520,1765379452519,-1496.31,0.00014984,2]
[398112521,1765379452528,-500.0,0.00014984,2]
[398112522,1765379452537,-500.0,0.00014984,2]
[398112523,1765379452546,-994.72,0.00014984,2]
[398112524,1765379452556,-500.0,0.00014984,2]
[398112525,1765379452565,-500.0,0.00014984,2]
[398112526,1765379452575,-500.0,0.00014984,2]
[398112527,1765379452584,-500.0,0.00014984,2]
[398112528,1765379452594,-500.0,0.00014984,2]
[398112529,1765379452715,-500.0,0.00014984,2]
[398112530,1765379452725,-500.0,0.00014984,2]
[398112531,1765379452734,-500.0,0.00014984,2]
[398112532,1765379452744,-500.0,0.00014984,2]
[398112533,1765379452753,-500.0,0.00014984,2]
[398112534,1765379452762,-500.0,0.00014984,2]
[398112535,1765379452771,-500.0,0.00014984,2]
[398112536,1765379452781,-500.0,0.00014984,2]
[398112537,1765379452790,-688.43,0.00014984,2]
[398112538,1765379452799,-500.0,0.00014984,2]
[398112539,1765379452808,-500.0,0.00014984,2]
[398112540,1765379452817,-500.0,0.00014984,2]
[398112541,1765379452827,-1140.29,0.00014984,2]
[398112542,1765379452836,-600.38,0.00014984,2]
[398112543,1765379452845,-352.10622316,0.00014984,2]
[398112544,1765379452854,-500.0,0.00014984,2]
[398112545,1765379452863,-500.0,0.00014984,2]
[398112546,1765379452872,-500.0,0.00014984,2]
[398112547,1765379452881,-500.0,0.00014984,2]
[398112548,1765379452890,-500.0,0.00014984,2]
[398112549,1765379452899,-500.0,0.00014984,2]
[398112550,1765379452909,-506.63,0.00014984,2]
[398112551,1765379452917,-500.0,0.00014984,2]
[398112552,1765379452926,-500.0,0.00014984,2]
[398112553,1765379452935,-500.0,0.00014984,2]
[398112554,1765379452944,-1108.38,0.00014984,2]
[398112555,1765379452953,-500.0,0.00014984,2]
[398112556,1765379452962,-500.0,0.00014984,2]
[398112557,1765379452971,-895.96,0.00014984,2]
[398112558,1765379452980,-507.98,0.00014984,2]
[398112559,1765379452989,-500.0,0.00014984,2]
[398112560,1765379452998,-500.0,0.00014984,2]
[398112561,1765379453007,-500.0,0.00014984,2]
[398112562,1765379453016,-719.99,0.00014984,2]
[398112563,1765379453025,-613.9974187,0.00014984,2]
[398112564,1765379453035,-202.33880537,0.00014984,2]
[398112565,1765379453045,-727.01,0.00014984,2]
[398112566,1765379453054,-560.82211951,0.00014984,2]
[398112567,1765379453063,-500.0,0.00014984,2]
[398112568,1765379453072,-500.53963716,0.00014984,2]
[398112569,1765379453082,-500.0,0.00014984,2]
[398112570,1765379453091,-500.24782154,0.00014984,2]
[398112571,1765379453101,-500.0,0.00014984,2]
[398112572,1765379453111,-501.33090128,0.00014984,2]
[398112573,1765379453121,-500.0,0.00014984,2]
[398112574,1765379453132,-1115.03,0.00014984,2]
[398112575,1765379453141,-500.0,0.00014984,2]
[398112576,1765379453151,-500.0,0.00014984,2]
[398112577,1765379453161,-500.0,0.00014984,2]
[398112578,1765379453171,-501.34435929,0.00014984,2]
[398112579,1765379453181,-500.0,0.00014984,2]
[398112580,1765379453191,-211.32699013,0.00014984,2]
[398112581,1765379453200,-500.0,0.00014984,2]
[398112582,1765379453209,-500.0,0.00014984,2]
[398112583,1765379453219,-500.0,0.00014984,2]
[398112584,1765379453230,-699.48,0.00014984,2]
[398112585,1765379453239,-589.65,0.00014984,2]
[398112586,1765379453249,-500.0,0.00014984,2]
[398112587,1765379453259,-500.0,0.00014984,2]
[398112588,1765379453269,-493.84623406,0.00014984,2]
[398112589,1765379453278,-1043.54,0.00014984,2]
[398112590,1765379453288,-500.0,0.00014984,2]
[398112591,1765379453298,-500.0,0.00014984,2]
[398112592,1765379453307,-500.0,0.00014984,2]
[398112593,1765379453317,-500.0,0.00014984,2]
[398112594,1765379453326,-500.0,0.00014984,2]
[398112595,1765379453335,-500.0,0.00014984,2]
[398112596,1765379453344,-500.0,0.00014984,2]
[398112597,1765379453354,-500.0,0.00014984,2]
[398112598,1765379453368,-500.0,0.00014984,2]
[398112599,1765379453378,-897.58,0.00014984,2]
[398112600,1765379453387,-500.0,0.00014984,2]
[398112601,1765379453397,-500.0,0.00014984,2]
[398112602,1765379453407,-1347.37,0.00014984,2]
[398112603,1765379453416,-816.15,0.00014984,2]
[398112604,1765379453426,-500.0,0.00014984,2]
[398112605,1765379453436,-500.0,0.00014984,2]
[398112606,1765379453446,-500.0,0.00014984,2]
[398112607,1765379453456,-1666.98,0.00014984,2]
[398112608,1765379453466,-1666.98,0.00014984,2]
[398112609,1765379453476,-1666.98,0.00014984,2]
[398112610,1765379453485,-1666.98,0.00014984,2]
[398112611,1765379453496,-1666.98,0.00014984,2]
[398112612,1765379453505,-1667.13291544,0.00014984,2]
[398112613,1765379453515,-500.0,0.00014985,2]
[398112614,1765379453524,-500.0,0.00014985,2]
[398112615,1765379453538,-527.67137656,0.00014985,2]
[398112616,1765379453548,-500.0,0.00014985,2]
[398112617,1765379453558,-500.0,0.00014986,2]
[398112618,1765379453567,-500.0,0.00014986,2]
[398112619,1765379453576,-500.0,0.00014986,2]
[398112620,1765379453586,-700.0,0.00015,10]
[398112621,1765379453596,-3000.0,0.00015,2]
[398112622,1765379453605,-151.0,0.00015119,2]
[398112623,1765379453615,-533.88981491,0.00015143,2]
[398112624,1765379453625,-2230.315306,0.00015143,2]
[398112625,1765379453635,-151.0,0.00015143,2]
[398112626,1765379453644,-563.47,0.00015159,2]
[398112627,1765379453654,-500.0,0.00015253,2]
[398112628,1765379453664,-500.0,0.00015253,2]
[398112629,1765379453673,-3829.55,0.00015253,2]
[398112630,1765379453683,-2214.76,0.00015253,2]
[398112631,1765379453692,-2290.76,0.00015253,2]
[398112632,1765379453702,-1354.64,0.00015253,2]
[398112633,1765379453711,-780.43,0.00015253,2]
[398112634,1765379453720,-4164.05,0.00015253,2]
[398112635,1765379453730,-12387.28,0.00015253,2]
[398112636,1765379453739,-627.11,0.00015253,2]
[398112637,1765379453748,-5816.23,0.00015253,2]
[398112638,1765379453758,-2071.3562754,0.00015253,2]
[398112639,1765379453782,-299.2937246,0.00015253,2]
[398112640,1765379453792,-1431.4,0.00015253,2]
[398112641,1765379453801,-2910.63,0.00015253,2]
[398112642,1765379453811,-2048.54,0.00015253,2]
[398112643,1765379453820,-607.46,0.00015253,2]
[398112644,1765379453829,-899.45,0.00015253,2]
[398112645,1765379453839,-3150.75,0.00015253,2]
[398112646,1765379453849,-973.98,0.00015253,2]
[398112647,1765379453858,-2858.62,0.00015253,2]
[398112648,1765379453869,-500.0,0.00015253,2]
[398112649,1765379453879,-501.71634287,0.00015253,2]
[398112650,1765379453890,-500.0,0.00015253,2]
[398112651,1765379453900,-1051.93,0.00015253,2]
[398112652,1765379453909,-500.0,0.00015253,2]
[398112653,1765379453919,-2258.37,0.00015253,2]
[398112654,1765379453928,-1264.87,0.00015254,2]
[398112655,1765379453937,-3840.35,0.00015254,2]
[398112656,1765379453947,-767.13,0.00015254,2]
[398112657,1765379453955,-1017.3,0.00015254,2]
[398112658,1765379453965,-1149.03,0.00015254,2]
[398112659,1765379453975,-3154.02,0.00015254,2]
[398112660,1765379453984,-500.0,0.00015254,2]
[398112661,1765379453993,-927.14,0.00015254,2]
[398112662,1765379454003,-1938.65,0.00015254,2]
[398112663,1765379454012,-500.0,0.00015254,2]
[398112664,1765379454021,-1770.81,0.00015254,2]
[398112665,1765379454030,-3351.8,0.00015254,2]
[398112666,1765379454039,-1875.0,0.00015254,2]
[398112667,1765379454049,-500.0,0.00015254,2]
[398112668,1765379454058,-3827.97,0.00015254,2]
[398112669,1765379454067,-1845.7,0.00015254,2]
[398112670,1765379454076,-500.0,0.00015254,2]
[398112671,1765379454085,-1557.55,0.00015254,2]
[398112672,1765379454094,-2247.69,0.00015254,2]
[398112673,1765379454105,-707.54,0.00015254,2]
[398112674,1765379454114,-798.03,0.00015254,2]
[398112675,1765379454124,-2281.36,0.00015254,2]
[398112676,1765379454134,-2898.71,0.00015254,2]
[398112677,1765379454143,-500.0,0.00015254,2]
[398112678,1765379454152,-1299.98,0.00015254,2]
[398112679,1765379454162,-1603.4,0.00015254,2]
[398112680,1765379454171,-500.0,0.00015254,2]
[398112681,1765379454180,-1018.49,0.00015254,2]
[398112682,1765379454189,-1130.873361,0.00015254,2]
[398112683,1765379522456,152.17,6.5e-05,2]
[398112684,1765379522747,152.17,6.5e-05,2]
[398112685,1765379523038,152.17,6.5e-05,2]
[398112686,1765379523320,152.17,6.5e-05,2]
[398112687,1765379523612,152.17,6.5e-05,2]
[398112688,1765379523916,152.17,6.5e-05,2]
[398112689,1765379524266,152.17,6.5e-05,2]
[398112690,1765379524555,152.17,6.5e-05,2]
[398112691,1765379524842,152.17,6.5e-05,2]
[398112692,1765379582543,152.17,6.5e-05,2]
[398112693,1765379582868,152.17,6.5e-05,2]
[398112694,1765379583175,152.17,6.5e-05,2]
[398112695,1765379583567,152.17,6.5e-05,2]
[398112696,1765379583943,152.17,6.5e-05,2]
[398112697,1765379617691,178.327881,4.724e-05,2]
[398112700,1765379987570,-150.0,6.807e-05,2]
[398112701,1765379987598,-150.0,6.888e-05,2]
[398112702,1765379987628,-178.327881,7.086e-05,2]
[398112703,1765379987660,-150.0,7.132e-05,2]
[398112704,1765379987689,-150.0,7.456e-05,2]
[398112705,1765379987718,-150.0,7.78e-05,2]
[398112706,1765379987748,-150.0,8.104e-05,2]
[398112707,1765379987778,-150.0,8.428e-05,2]
[398112708,1765379987812,-150.0,8.752e-05,2]
[398112709,1765379987842,-177.0,8.888e-05,2]
[398112710,1765379987873,-152.94,9.077e-05,2]
[398112711,1765379987902,-172.05,9.401e-05,2]
[398112712,1765379987930,-223.95280604,9.444e-05,2]
[398112713,1765379987958,-178.327881,9.448e-05,2]
[398112714,1765379987986,-204.0,0.00010888,2]
[398112727,1765380603396,248.09,6.5e-05,2]
[398112728,1765380603480,248.09,6.5e-05,2]
[398112729,1765380603768,248.09,6.5e-05,2]
[398112730,1765380604057,248.09,6.5e-05,2]
[398112731,1765380604334,248.09,6.5e-05,2]
[398112732,1765380604732,248.09,6.5e-05,2]
[398112733,1765380605118,248.09,6.5e-05,2]
[398112734,1765380605786,248.09,6.5e-05,2]
[398112735,1765380605860,248.09,6.5e-05,2]
[398112736,1765380606137,248.09,6.5e-05,2]
[398112737,1765380606427,248.09,6.5e-05,2]
[398112738,1765380606750,248.09,6.5e-05,2]
[398112739,1765380607035,248.09,6.5e-05,2]
[398112740,1765380607373,248.09,6.5e-05,2]
[398112741,1765380607816,248.09,6.5e-05,2]
[398112742,1765380608271,248.09,6.5e-05,2]
[398112743,1765380608592,248.09,6.5e-05,2]
[398112744,1765380608872,248.09,6.5e-05,2]
[398112745,1765380609215,248.09,6.5e-05,2]
[398112746,1765380609509,248.09,6.5e-05,2]
[398112747,1765380609811,248.09,6.5e-05,2]
[398112748,1765380610161,248.09,6.5e-05,2]
[398112749,1765380610441,248.09,6.5e-05,2]
[398112750,1765380610755,248.09,6.5e-05,2]
[398112751,1765380611110,248.09,6.5e-05,2]
[398112752,1765380611452,248.09,6.5e-05,2]
[398112753,1765380611767,248.09,6.5e-05,2]
[398112754,1765380612660,248.09,6.5e-05,2]
[398112755,1765380612986,248.09,6.5e-05,2]
[398112756,1765380613470,248.09,6.5e-05,2]
[398112757,1765380613593,248.09,6.5e-05,2]
[398112758,1765380614013,248.09,6.5e-05,2]
[398112759,1765380614782,248.09,6.5e-05,2]
[398112760,1765380615057,248.09,6.5e-05,2]
[398112761,1765380615329,248.09,6.5e-05,2]
[398112762,1765380615625,248.09,6.5e-05,2]
[398112763,1765380616012,248.09,6.5e-05,2]
[398112764,1765380616354,248.09,6.5e-05,2]
[398112765,1765380616951,248.09,6.5e-05,2]
[398112766,1765380617308,248.09,6.5e-05,2]
[398112767,1765380617514,248.09,6.5e-05,2]
[398112768,1765380617853,248.09,6.5e-05,2]
[398112769,1765380618366,248.09,6.5e-05,2]
[398112770,1765380618487,248.09,6.5e-05,2]
[398112771,1765380618874,248.09,6.5e-05,2]
[398112772,1765380619147,248.09,6.5e-05,2]
[398112773,1765380619453,248.09,6.5e-05,2]
[398112774,1765380619791,248.09,6.5e-05,2]
[398112775,1765380620107,248.09,6.5e-05,2]
[398112776,1765380620401,248.09,6.5e-05,2]
[398112813,1765380632190,-150.0,0.00013447,2]
[398112814,1765380632200,-475.36181593,0.000136,2]
[398112815,1765380632229,-524.63818407,0.000136,2]
[398112816,1765380632238,-944.157797,0.00013699,2]
[398112817,1765380632250,-300.26461927,0.00013797,2]
[398112818,1765380632260,-181.25360492,0.00014524,2]
[398112819,1765380632269,-4163.08272793,0.00014868,2]
[398112820,1765380632279,-175.89354136,0.00014876,2]
[398112821,1765380632288,-175.89354136,0.00014877,2]
[398112822,1765380632298,-175.89354136,0.00014877,2]
[398112823,1765380632307,-2579.17784983,0.00014959,2]
[398112824,1765380632318,-300.0,0.00014966,2]
[398112825,1765380632328,-500.0,0.00014967,2]
[398112826,1765380632339,-500.0,0.00014967,2]
[398112827,1765380632348,-6750.81,0.00014967,2]
[398112828,1765380632358,-2030.19,0.00014967,2]
[398112829,1765380632367,-2099.86,0.00014967,2]
[398112830,1765380632377,-715.4,0.00014967,2]
[398112831,1765380632388,-3817.05,0.00014967,2]
[398112832,1765380632397,-11355.01,0.00014967,2]
[398112833,1765380632408,-5331.54,0.00014967,2]
[398112834,1765380632418,-574.86,0.00014967,2]
[398112835,1765380632429,-2173.09,0.00014967,2]
[398112836,1765380632439,-820.07,0.00014967,2]
[398112837,1765380632448,-2668.08,0.00014967,2]
[398112838,1765380632458,-556.84,0.00014967,2]
[398112839,1765380632468,-500.0,0.00014967,2]
[398112840,1765380632478,-2888.19,0.00014967,2]
[398112841,1765380632487,-892.81,0.00014967,2]
[398112842,1765380632496,-2620.4,0.00014967,2]
[398112843,1765380632506,-500.0,0.00014967,2]
[398112844,1765380632516,-596.16,0.00014967,2]
[398112845,1765380632525,-500.0,0.00014967,2]
[398112846,1765380632535,-824.49,0.00014967,2]
[398112847,1765380632545,-500.0,0.00014967,2]
[398112848,1765380632555,-964.27,0.00014967,2]
[398112849,1765380632564,-502.01319154,0.00014967,2]
[398112850,1765380632574,-1639.97,0.00014967,2]
[398112851,1765380632583,-500.0,0.00014967,2]
[398112852,1765380632592,-2070.17,0.00014967,2]
[398112853,1765380632601,-748.59,0.00014967,2]
[398112854,1765380632610,-1159.47,0.00014967,2]
[398112855,1765380632620,-1976.78,0.00014967,2]
[398112856,1765380632629,-1032.65,0.00014967,2]
[398112857,1765380632639,-500.0,0.00014967,2]
[398112858,1765380632648,-932.52,0.00014967,2]
[398112859,1765380632658,-253.86280146,0.00014967,2]
[398112860,1765380632667,-3520.32,0.00014968,2]
[398112861,1765380632677,-1184.68,0.00014968,2]
[398112862,1765380632687,-500.0,0.00014968,2]
[398112863,1765380632697,-1053.27,0.00014968,2]
[398112864,1765380632706,-5559.98,0.00014968,2]
[398112865,1765380632716,-849.88,0.00014968,2]
[398112866,1765380632725,-500.0,0.00014968,2]
[398112867,1765380632735,-1777.1,0.00014968,2]
[398112868,1765380632744,-500.0,0.00014968,2]
[398112869,1765380632754,-1623.25,0.00014968,2]
[398112870,1765380632764,-3072.48,0.00014968,2]
[398112871,1765380632773,-329.79123896,0.00014968,2]
[398112905,1765380638239,-500.0,0.00014966,2]
[398112907,1765380638251,-500.0,0.00014966,2]
[398112909,1765380638262,-500.0,0.00014966,2]
[398112912,1765380638273,-500.0,0.00014966,2]
[398112914,1765380638284,-500.0,0.00014966,2]
[398112916,1765380638294,-500.0,0.00014966,2]
[398112918,1765380638305,-330.13702509,0.00014966,2]
[398112920,1765380638315,-500.0,0.00014966,2]
[398112922,1765380638325,-337.27798819,0.00014966,2]
[398112924,1765380638338,-162.72201181,0.00014966,2]
[398112927,1765380638350,-500.0,0.00014966,2]
[398112929,1765380638362,-500.0,0.00014966,2]
[398112931,1765380638373,-600.5674049,0.00014966,2]
[398112933,1765380638383,-500.0,0.00014966,2]
[398112935,1765380638393,-500.0,0.00014966,2]
[398112937,1765380638403,-500.0,0.00014966,2]
[398112939,1765380638414,-3373.64,0.00014967,2]
[398112942,1765380638425,-500.0,0.00014967,2]
[398112944,1765380638435,-500.0,0.00014967,2]
[398112946,1765380638446,-1388.95876104,0.00014968,2]
[398112948,1765380638457,-500.0,0.00014968,2]
[398112950,1765380638467,-1691.89,0.00014968,2]
[398112952,1765380638478,-3508.98,0.00014968,2]
[398112954,1765380638488,-500.0,0.00014968,2]
[398112956,1765380638500,-1222.32212019,0.00014968,2]
[398112961,1765380638528,-205.43787981,0.00014968,2]
[398112963,1765380638539,-2809.62,0.00014968,2]
[398112965,1765380638550,-648.58,0.00014968,2]
[398112967,1765380638560,-731.52,0.00014968,2]
[398112969,1765380638570,-2091.25,0.00014968,2]
[398112971,1765380638581,-500.0,0.00014968,2]
[398112974,1765380638592,-2657.15,0.00014968,2]
[398112976,1765380638602,-1191.65,0.00014968,2]
[398112978,1765380638613,-500.0,0.00014968,2]
[398112980,1765380638623,-1469.78,0.00014968,2]
[398112982,1765380638633,-1630.48,0.00014968,2]
[398112984,1765380638644,-1639.86,0.00014968,2]
[398112987,1765380638656,-10301.49,0.00014968,2]
[398112989,1765380638666,-617.43,0.00014968,2]
[398112991,1765380638677,-2637.47,0.00014968,2]
[398112993,1765380638689,-623.28,0.00014968,2]
[398112995,1765380638699,-1498.49,0.00014968,2]
[398112997,1765380638708,-2901.5,0.00014968,2]
[398112999,1765380638717,-1941.88,0.00014968,2]
[398113001,1765380638727,-4595.01,0.00014968,2]
[398113003,1765380638737,-9338.04,0.00014968,2]
[398113005,1765380638746,-151.0,0.00014968,2]
[398113007,1765380638756,-500.0,0.00014968,2]
[398113009,1765380638765,-500.0,0.00014968,2]
[398113011,1765380638774,-533.88981491,0.00014968,2]
[398113013,1765380638783,-500.0,0.00014968,2]
[398113015,1765380638793,-242.17745454,0.00014968,2]
[398113017,1765380638802,-500.0,0.00014968,2]
[398113019,1765380638811,-500.0,0.00014968,2]
[398113021,1765380638821,-500.0,0.00014968,2]
[398113023,1765380638830,-500.0,0.00014968,2]
[398113025,1765380638840,-500.0,0.00014968,2]
[398113027,1765380638850,-500.0,0.00014968,2]
[398113029,1765380638859,-500.0,0.00014968,2]
[398113031,1765380638869,-500.0,0.00014968,2]
[398113033,1765380638878,-500.0,0.00014968,2]
[398113035,1765380638887,-500.0,0.00014968,2]
[398113037,1765380638897,-500.0,0.00014968,2]
[398113086,1765380639446,-500.0,0.00014968,2]
[398113087,1765380639470,-500.0,0.00014968,2]
[398113088,1765380639491,-500.0,0.00014968,2]
[398113089,1765380639507,-500.0,0.00014968,2]
[398113090,1765380639517,-500.0,0.00014968,2]
[398113091,1765380639527,-500.0,0.00014968,2]
[398113092,1765380639538,-500.0,0.00014968,2]
[398113093,1765380639548,-500.0,0.00014968,2]
[398113094,1765380639557,-500.0,0.00014968,2]
[398113095,1765380639566,-500.0,0.00014968,2]
[398113096,1765380639576,-533.08127416,0.00014968,2]
[398113097,1765380639585,-250.0,0.00014968,2]
[398113098,1765380639595,-250.0,0.00014968,2]
[398113099,1765380639604,-250.0,0.00014968,2]
[398113100,1765380639614,-250.0,0.00014968,2]
[398113101,1765380639624,-250.0,0.00014968,2]
[398113102,1765380639633,-250.0,0.00014968,2]
[398113103,1765380639643,-250.0,0.00014968,2]
[398113104,1765380639653,-250.0,0.00014968,2]
[398113105,1765380639662,-250.0,0.00014968,2]
[398113106,1765380639672,-250.0,0.00014968,2]
[398113107,1765380639682,-250.0,0.00014968,2]
[398113108,1765380639692,-500.0,0.00014976,2]
[398113109,1765380639702,-500.0,0.00014976,2]
[398113110,1765380639712,-500.0,0.00014976,2]
[398113111,1765380639722,-500.0,0.00014976,2]
[398113112,1765380639732,-500.0,0.00014976,2]
[398113113,1765380639741,-500.0,0.00014976,2]
[398113114,1765380639751,-500.0,0.00014976,2]
[398113115,1765380639762,-797.51,0.00014976,2]
[398113116,1765380639772,-500.0,0.00014976,2]
[398113117,1765380639782,-500.0,0.00014976,2]
[398113118,1765380639791,-500.0,0.00014976,2]
[398113119,1765380639800,-500.0,0.00014976,2]
[398113120,1765380639810,-800.6,0.00014976,2]
[398113121,1765380639820,-500.0,0.00014976,2]
[398113122,1765380639829,-500.0,0.00014976,2]
[398113123,1765380639839,-718.59,0.00014976,2]
[398113124,1765380639849,-805.89,0.00014976,2]
[398113125,1765380639859,-502.41203688,0.00014976,2]
[398113126,1765380639868,-500.0,0.00014976,2]
[398113127,1765380639878,-500.0,0.00014976,2]
[398113128,1765380639887,-3079.15,0.00014976,2]
[398113129,1765380639897,-1212.97,0.00014976,2]